[Event "Titled Tuesday Blitz February 07 Late 2023"]
[White "Holt, Conrad"]
[Black "Sztokbant, Bernardo Vainzoff"]
[WhiteFideId "2034387"]
[BlackFideId "2115956"]
[WhiteElo "2540"]
[BlackElo "2213"]
[Result "1-0"]
[Round "04"]
[TimeControl "180+2"]
[Date "2023.02.07"]
[WhiteClock "0:00:57"]
[BlackClock "0:00:01"]

1. d4 {[%clk 0:03:00]}  Nf6 {[%clk 0:02:59]} 2. c4 {[%clk 0:03:00]}  e6 {[%clk 0:02:59]} 3. Nc3 {[%clk 0:03:00]}  d5 {[%clk 0:02:58]} 4. cxd5 {[%clk 0:03:00]}  exd5 {[%clk 0:02:58]} 5. Bg5 {[%clk 0:03:00]}  c6 {[%clk 0:02:57]} 6. e3 {[%clk 0:03:00]}  Be7 {[%clk 0:02:57]} 7. Qc2 {[%clk 0:02:59]}  g6 {[%clk 0:02:56]} 8. Bd3 {[%clk 0:02:57]}  O-O {[%clk 0:02:55]} 9. h4 {[%clk 0:02:53]}  Nbd7 {[%clk 0:02:53]} 10. h5 {[%clk 0:02:48]}  Ne4 {[%clk 0:02:35]} 11. Bh6 {[%clk 0:02:36]}  Re8 {[%clk 0:02:24]} 12. hxg6 {[%clk 0:02:36]}  hxg6 {[%clk 0:02:20]} 13. Nxe4 {[%clk 0:02:35]}  dxe4 {[%clk 0:02:21]} 14. Bxe4 {[%clk 0:02:35]}  Bb4+ {[%clk 0:02:13]} 15. Kf1 {[%clk 0:02:35]}  Qf6 {[%clk 0:01:59]} 16. Nf3 {[%clk 0:02:32]}  Nf8 {[%clk 0:01:35]} 17. Bf4 {[%clk 0:02:28]}  Bd6 {[%clk 0:01:20]} 18. Bxd6 {[%clk 0:02:17]}  Qxd6 {[%clk 0:01:21]} 19. Kg1 {[%clk 0:02:16]}  Kg7 {[%clk 0:01:18]} 20. Bd3 {[%clk 0:02:13]}  Be6 {[%clk 0:01:13]} 21. Qd2 {[%clk 0:02:06]}  Nd7 {[%clk 0:01:03]} 22. e4 {[%clk 0:02:01]}  Rh8 {[%clk 0:01:03]} 23. Rxh8 {[%clk 0:01:59]}  Rxh8 {[%clk 0:01:02]} 24. Qg5 {[%clk 0:01:56]}  Rh5 {[%clk 0:00:55]} 25. Qg3 {[%clk 0:01:54]}  Qxg3 {[%clk 0:00:54]} 26. fxg3 {[%clk 0:01:55]}  Ra5 {[%clk 0:00:52]} 27. a3 {[%clk 0:01:53]}  Nf6 {[%clk 0:00:42]} 28. b4 {[%clk 0:01:43]}  Rh5 {[%clk 0:00:39]} 29. Rc1 {[%clk 0:01:39]}  Ng4 {[%clk 0:00:35]} 30. Rc5 {[%clk 0:01:37]}  Rh8 {[%clk 0:00:32]} 31. d5 {[%clk 0:01:34]}  Bd7 {[%clk 0:00:29]} 32. d6 {[%clk 0:01:28]}  Re8 {[%clk 0:00:19]} 33. e5 {[%clk 0:01:24]}  f6 {[%clk 0:00:19]} 34. exf6+ {[%clk 0:01:24]}  Kxf6 {[%clk 0:00:20]} 35. Rc4 {[%clk 0:01:17]}  Ne3 {[%clk 0:00:15]} 36. Rf4+ {[%clk 0:01:15]}  Kg7 {[%clk 0:00:15]} 37. Ng5 {[%clk 0:01:08]}  Bf5 {[%clk 0:00:09]} 38. d7 {[%clk 0:01:08]}  Rd8 {[%clk 0:00:09]} 39. Bxf5 {[%clk 0:01:07]}  Kf6 {[%clk 0:00:01]} 40. Ne4+ {[%clk 0:00:58]}  Ke5 {[%clk 0:00:01]} 41. Bh3 {[%clk 0:00:57]} 1-0


[Site "https://www.chess.com"]

[Event "Titled Tuesday Blitz February 07 Late 2023"]
[White "Bjelobrk, Igor"]
[Black "Petrovic, Aleksa"]
[WhiteFideId "4300726"]
[BlackFideId "967629"]
[WhiteElo "2403"]
[BlackElo "2332"]
[Result "1-0"]
[Round "04"]
[TimeControl "180+2"]
[Date "2023.02.07"]
[WhiteClock "0:00:16"]
[BlackClock "0:00:04"]

1. d4 {[%clk 0:02:57]}  e6 {[%clk 0:02:59]} 2. c4 {[%clk 0:02:54]}  Nf6 {[%clk 0:02:57]} 3. g3 {[%clk 0:02:53]}  d5 {[%clk 0:02:55]} 4. Bg2 {[%clk 0:02:53]}  dxc4 {[%clk 0:02:55]} 5. Qa4+ {[%clk 0:02:51]}  Bd7 {[%clk 0:02:53]} 6. Qxc4 {[%clk 0:02:46]}  Bc6 {[%clk 0:02:53]} 7. Nf3 {[%clk 0:02:41]}  Nbd7 {[%clk 0:02:53]} 8. Nc3 {[%clk 0:02:33]}  Bd6 {[%clk 0:02:42]} 9. O-O {[%clk 0:02:31]}  O-O {[%clk 0:02:42]} 10. Rd1 {[%clk 0:02:29]}  Nb6 {[%clk 0:02:31]} 11. Qd3 {[%clk 0:02:27]}  Nbd5 {[%clk 0:02:19]} 12. Ne5 {[%clk 0:02:04]}  Be8 {[%clk 0:02:12]} 13. Nc4 {[%clk 0:01:51]}  Be7 {[%clk 0:02:06]} 14. e4 {[%clk 0:01:50]}  Nxc3 {[%clk 0:02:03]} 15. bxc3 {[%clk 0:01:46]}  Bb5 {[%clk 0:02:00]} 16. a4 {[%clk 0:01:45]}  Ba6 {[%clk 0:02:00]} 17. Bf1 {[%clk 0:01:11]}  c5 {[%clk 0:01:37]} 18. Qf3 {[%clk 0:01:07]}  cxd4 {[%clk 0:01:33]} 19. cxd4 {[%clk 0:01:08]}  Rc8 {[%clk 0:01:32]} 20. Ne3 {[%clk 0:00:59]}  Bxf1 {[%clk 0:01:28]} 21. Kxf1 {[%clk 0:01:00]}  Qb6 {[%clk 0:01:20]} 22. e5 {[%clk 0:00:54]}  Nd7 {[%clk 0:01:09]} 23. Kg1 {[%clk 0:00:47]}  Rfd8 {[%clk 0:01:05]} 24. Ba3 {[%clk 0:00:38]}  Bxa3 {[%clk 0:01:03]} 25. Rxa3 {[%clk 0:00:39]}  Nb8 {[%clk 0:01:02]} 26. d5 {[%clk 0:00:33]}  Nd7 {[%clk 0:00:48]} 27. Qh5 {[%clk 0:00:24]}  exd5 {[%clk 0:00:45]} 28. Nxd5 {[%clk 0:00:20]}  Qe6 {[%clk 0:00:45]} 29. Re3 {[%clk 0:00:18]}  Nf8 {[%clk 0:00:30]} 30. Red3 {[%clk 0:00:18]}  Re8 {[%clk 0:00:20]} 31. f4 {[%clk 0:00:18]}  h6 {[%clk 0:00:19]} 32. Qf3 {[%clk 0:00:17]}  Nd7 {[%clk 0:00:13]} 33. Re1 {[%clk 0:00:17]}  Nc5 {[%clk 0:00:13]} 34. Rd2 {[%clk 0:00:17]}  Nxa4 {[%clk 0:00:11]} 35. f5 {[%clk 0:00:17]}  Qc6 {[%clk 0:00:09]} 36. f6 {[%clk 0:00:13]}  Nc3 {[%clk 0:00:07]} 37. Qg4 {[%clk 0:00:12]}  g6 {[%clk 0:00:04]} 38. Ne7+ {[%clk 0:00:11]}  Rxe7 {[%clk 0:00:04]} 39. fxe7 {[%clk 0:00:12]}  Re8 {[%clk 0:00:04]} 40. Rd8 {[%clk 0:00:12]}  Qc5+ {[%clk 0:00:04]} 41. Kg2 {[%clk 0:00:11]}  Qxe7 {[%clk 0:00:04]} 42. Rxe8+ {[%clk 0:00:11]}  Qxe8 {[%clk 0:00:05]} 43. Qf3 {[%clk 0:00:12]}  Qc6 {[%clk 0:00:05]} 44. Qxc6 {[%clk 0:00:11]}  bxc6 {[%clk 0:00:06]} 45. Rc1 {[%clk 0:00:12]}  Nd5 {[%clk 0:00:05]} 46. Rxc6 {[%clk 0:00:13]}  Kg7 {[%clk 0:00:06]} 47. Ra6 {[%clk 0:00:12]}  Ne3+ {[%clk 0:00:06]} 48. Kf3 {[%clk 0:00:12]}  Nc4 {[%clk 0:00:06]} 49. e6 {[%clk 0:00:13]}  fxe6 {[%clk 0:00:05]} 50. Rxe6 {[%clk 0:00:13]}  Nb6 {[%clk 0:00:04]} 51. Re7+ {[%clk 0:00:13]}  Kf6 {[%clk 0:00:05]} 52. Rxa7 {[%clk 0:00:14]}  Nd5 {[%clk 0:00:05]} 53. Ra6+ {[%clk 0:00:14]}  Kg7 {[%clk 0:00:05]} 54. h4 {[%clk 0:00:15]}  Nf6 {[%clk 0:00:05]} 55. g4 {[%clk 0:00:15]}  h5 {[%clk 0:00:05]} 56. Ra7+ {[%clk 0:00:14]}  Kg8 {[%clk 0:00:04]} 57. g5 {[%clk 0:00:15]}  Ng4 {[%clk 0:00:04]} 58. Kf4 {[%clk 0:00:15]}  Nf2 {[%clk 0:00:04]} 59. Ke5 {[%clk 0:00:14]}  Ng4+ {[%clk 0:00:04]} 60. Ke6 {[%clk 0:00:15]}  Kf8 {[%clk 0:00:05]} 61. Rh7 {[%clk 0:00:14]}  Kg8 {[%clk 0:00:05]} 62. Ra7 {[%clk 0:00:14]}  Kf8 {[%clk 0:00:06]} 63. Rb7 {[%clk 0:00:14]}  Kg8 {[%clk 0:00:06]} 64. Rb8+ {[%clk 0:00:14]}  Kg7 {[%clk 0:00:06]} 65. Rc8 {[%clk 0:00:14]}  Kh7 {[%clk 0:00:03]} 66. Rd8 {[%clk 0:00:14]}  Kg7 {[%clk 0:00:04]} 67. Re8 {[%clk 0:00:14]}  Kh7 {[%clk 0:00:04]} 68. Kf7 {[%clk 0:00:15]}  Nf2 {[%clk 0:00:03]} 69. Re7 {[%clk 0:00:15]}  Nd3 {[%clk 0:00:03]} 70. Kf6+ {[%clk 0:00:15]}  Kh8 {[%clk 0:00:03]} 71. Kxg6 {[%clk 0:00:15]}  Nf4+ {[%clk 0:00:04]} 72. Kh6 {[%clk 0:00:15]}  Nd5 {[%clk 0:00:04]} 73. Re8# {[%clk 0:00:16]} 1-0


[Site "https://www.chess.com"]

[Event "Titled Tuesday Blitz February 07 Late 2023"]
[White "Landaw, Julian"]
[Black "Adewumi, Tanitoluwa"]
[WhiteFideId "2023342"]
[BlackFideId "30966396"]
[WhiteElo "2318"]
[BlackElo "2283"]
[Result "0-1"]
[Round "04"]
[TimeControl "180+2"]
[Date "2023.02.07"]
[WhiteClock "0:00:32"]
[BlackClock "0:00:23"]

1. e4 {[%clk 0:02:55]}  c6 {[%clk 0:02:59]} 2. d4 {[%clk 0:02:53]}  d5 {[%clk 0:02:59]} 3. exd5 {[%clk 0:02:54]}  cxd5 {[%clk 0:02:58]} 4. Bd3 {[%clk 0:02:54]}  Nc6 {[%clk 0:02:57]} 5. c3 {[%clk 0:02:55]}  Nf6 {[%clk 0:02:56]} 6. Bf4 {[%clk 0:02:55]}  g6 {[%clk 0:02:52]} 7. Nf3 {[%clk 0:02:54]}  Bg7 {[%clk 0:02:52]} 8. O-O {[%clk 0:02:53]}  O-O {[%clk 0:02:53]} 9. Nbd2 {[%clk 0:02:52]}  Bf5 {[%clk 0:02:53]} 10. Bxf5 {[%clk 0:02:52]}  gxf5 {[%clk 0:02:47]} 11. Ne5 {[%clk 0:02:52]}  e6 {[%clk 0:02:36]} 12. Qb3 {[%clk 0:02:50]}  Qb6 {[%clk 0:02:25]} 13. Rae1 {[%clk 0:02:38]}  Qa6 {[%clk 0:02:06]} 14. Re3 {[%clk 0:02:32]}  Nxe5 {[%clk 0:01:57]} 15. Bxe5 {[%clk 0:02:23]}  Ng4 {[%clk 0:01:56]} 16. Rg3 {[%clk 0:02:04]}  Nxe5 {[%clk 0:01:56]} 17. dxe5 {[%clk 0:02:04]}  Kh8 {[%clk 0:01:57]} 18. f4 {[%clk 0:01:58]}  Qe2 {[%clk 0:01:47]} 19. Nf3 {[%clk 0:01:54]}  Qe3+ {[%clk 0:01:41]} 20. Kh1 {[%clk 0:01:49]}  Qxf4 {[%clk 0:01:41]} 21. Qxb7 {[%clk 0:01:45]}  Bxe5 {[%clk 0:01:17]} 22. Re1 {[%clk 0:01:29]}  Bf6 {[%clk 0:01:12]} 23. Rh3 {[%clk 0:00:53]}  Qg4 {[%clk 0:01:04]} 24. Rxe6 {[%clk 0:00:49]}  Rab8 {[%clk 0:00:27]} 25. Qd7 {[%clk 0:00:36]}  Rxb2 {[%clk 0:00:23]} 26. Rxf6 {[%clk 0:00:32]}  Qxg2# {[%clk 0:00:23]} 0-1


[Site "https://www.chess.com"]

[Event "Titled Tuesday Blitz February 07 Late 2023"]
[White "Roux, Baptiste"]
[Black "EREBUNI91"]
[WhiteFideId "36017450"]
[WhiteElo "2300"]
[BlackElo "2759"]
[Result "0-1"]
[Round "04"]
[TimeControl "180+2"]
[Date "2023.02.07"]
[WhiteClock "0:00:02"]
[BlackClock "0:01:13"]

1. e4 {[%clk 0:03:00]}  c5 {[%clk 0:02:59]} 2. Nf3 {[%clk 0:02:47]}  d6 {[%clk 0:02:59]} 3. g3 {[%clk 0:02:46]}  g6 {[%clk 0:02:57]} 4. Bg2 {[%clk 0:02:47]}  Bg7 {[%clk 0:02:57]} 5. d3 {[%clk 0:02:47]}  Nc6 {[%clk 0:02:54]} 6. O-O {[%clk 0:02:48]}  e6 {[%clk 0:02:54]} 7. Re1 {[%clk 0:02:45]}  Nge7 {[%clk 0:02:50]} 8. Nbd2 {[%clk 0:02:45]}  O-O {[%clk 0:02:48]} 9. h4 {[%clk 0:02:45]}  e5 {[%clk 0:02:43]} 10. h5 {[%clk 0:02:44]}  Bg4 {[%clk 0:02:41]} 11. Nf1 {[%clk 0:02:34]}  Bxh5 {[%clk 0:02:38]} 12. N1h2 {[%clk 0:02:34]}  f5 {[%clk 0:02:32]} 13. exf5 {[%clk 0:02:34]}  gxf5 {[%clk 0:02:28]} 14. Bg5 {[%clk 0:02:29]}  Qd7 {[%clk 0:02:24]} 15. Qd2 {[%clk 0:02:28]}  Ng6 {[%clk 0:02:16]} 16. c3 {[%clk 0:02:21]}  f4 {[%clk 0:02:07]} 17. d4 {[%clk 0:02:15]}  cxd4 {[%clk 0:02:05]} 18. cxd4 {[%clk 0:02:14]}  Qf5 {[%clk 0:01:51]} 19. dxe5 {[%clk 0:02:13]}  dxe5 {[%clk 0:01:48]} 20. Qd5+ {[%clk 0:01:42]}  Kh8 {[%clk 0:01:46]} 21. gxf4 {[%clk 0:00:38]}  Nxf4 {[%clk 0:01:42]} 22. Bxf4 {[%clk 0:00:28]}  Qxf4 {[%clk 0:01:43]} 23. Re4 {[%clk 0:00:27]}  Qf5 {[%clk 0:01:41]} 24. Rae1 {[%clk 0:00:27]}  Nd4 {[%clk 0:01:31]} 25. Nxd4 {[%clk 0:00:11]}  Qxf2+ {[%clk 0:01:30]} 26. Kh1 {[%clk 0:00:12]}  Rad8 {[%clk 0:01:27]} 27. Qb5 {[%clk 0:00:07]}  Rxd4 {[%clk 0:01:26]} 28. Rf1 {[%clk 0:00:07]}  Rd1 {[%clk 0:01:18]} 29. Ra4 {[%clk 0:00:02]}  Be2 {[%clk 0:01:13]} 0-1


[Site "https://www.chess.com"]

[Event "Titled Tuesday Blitz February 07 Late 2023"]
[White "Przybylski, Wojciech"]
[Black "Nazari, Arad"]
[WhiteFideId "1117599"]
[BlackFideId "12577324"]
[WhiteElo "2321"]
[BlackElo "2367"]
[Result "1-0"]
[Round "04"]
[TimeControl "180+2"]
[Date "2023.02.07"]
[WhiteClock "0:00:17"]
[BlackClock "0:00:02"]

1. e4 {[%clk 0:03:00]}  c5 {[%clk 0:02:22]} 2. Nf3 {[%clk 0:02:59]}  d6 {[%clk 0:02:22]} 3. d4 {[%clk 0:02:59]}  cxd4 {[%clk 0:02:23]} 4. Nxd4 {[%clk 0:02:59]}  Nf6 {[%clk 0:02:23]} 5. Nc3 {[%clk 0:03:00]}  a6 {[%clk 0:02:24]} 6. Be3 {[%clk 0:02:59]}  e5 {[%clk 0:02:24]} 7. Nb3 {[%clk 0:02:59]}  Be6 {[%clk 0:02:25]} 8. Be2 {[%clk 0:02:58]}  Be7 {[%clk 0:02:25]} 9. O-O {[%clk 0:02:57]}  O-O {[%clk 0:02:22]} 10. f3 {[%clk 0:02:57]}  a5 {[%clk 0:02:15]} 11. a4 {[%clk 0:02:55]}  Nc6 {[%clk 0:02:15]} 12. Nb5 {[%clk 0:02:51]}  d5 {[%clk 0:02:13]} 13. Nc5 {[%clk 0:02:50]}  d4 {[%clk 0:01:22]} 14. Nxe6 {[%clk 0:02:46]}  fxe6 {[%clk 0:01:23]} 15. Bf2 {[%clk 0:02:38]}  Nd7 {[%clk 0:01:23]} 16. Bc4 {[%clk 0:02:35]}  Nc5 {[%clk 0:01:23]} 17. Kh1 {[%clk 0:02:24]}  Rf6 {[%clk 0:01:10]} 18. c3 {[%clk 0:02:18]}  dxc3 {[%clk 0:00:43]} 19. bxc3 {[%clk 0:02:14]}  Rh6 {[%clk 0:00:32]} 20. Qxd8+ {[%clk 0:02:08]}  Rxd8 {[%clk 0:00:31]} 21. Rfd1 {[%clk 0:02:02]}  Rxd1+ {[%clk 0:00:30]} 22. Rxd1 {[%clk 0:02:01]}  Nxa4 {[%clk 0:00:31]} 23. Rd7 {[%clk 0:01:40]}  Bc5 {[%clk 0:00:29]} 24. Bg3 {[%clk 0:01:16]}  b6 {[%clk 0:00:22]} 25. Nc7 {[%clk 0:00:54]}  Kf8 {[%clk 0:00:20]} 26. Bb5 {[%clk 0:00:42]}  Nxc3 {[%clk 0:00:10]} 27. Bxc6 {[%clk 0:00:41]}  a4 {[%clk 0:00:10]} 28. Be1 {[%clk 0:00:33]}  Ne2 {[%clk 0:00:10]} 29. Bxa4 {[%clk 0:00:31]}  g5 {[%clk 0:00:10]} 30. Rd8+ {[%clk 0:00:23]}  Ke7 {[%clk 0:00:09]} 31. Rd7+ {[%clk 0:00:23]}  Kf8 {[%clk 0:00:09]} 32. Bd1 {[%clk 0:00:19]}  Nd4 {[%clk 0:00:07]} 33. Bd2 {[%clk 0:00:19]}  Rh5 {[%clk 0:00:04]} 34. f4 {[%clk 0:00:17]}  Rh4 {[%clk 0:00:02]} 35. g3 {[%clk 0:00:17]}  Rh6 {[%clk 0:00:02]} 36. fxg5 {[%clk 0:00:17]} 1-0


[Site "https://www.chess.com"]

[Event "Titled Tuesday Blitz February 07 Late 2023"]
[White "Romanchuk, Viktor"]
[Black "reevecanada"]
[WhiteFideId "14109271"]
[WhiteElo "2266"]
[BlackElo "2474"]
[Result "0-1"]
[Round "04"]
[TimeControl "180+2"]
[Date "2023.02.07"]
[WhiteClock "0:00:04"]
[BlackClock "0:00:49"]

1. d4 {[%clk 0:03:00]}  Nf6 {[%clk 0:02:59]} 2. c4 {[%clk 0:03:00]}  g6 {[%clk 0:02:58]} 3. Nc3 {[%clk 0:02:59]}  d5 {[%clk 0:02:58]} 4. Nf3 {[%clk 0:02:58]}  Bg7 {[%clk 0:02:57]} 5. Bf4 {[%clk 0:02:58]}  O-O {[%clk 0:02:57]} 6. Rc1 {[%clk 0:02:57]}  a6 {[%clk 0:02:55]} 7. e3 {[%clk 0:02:42]}  c5 {[%clk 0:02:54]} 8. dxc5 {[%clk 0:02:39]}  Qa5 {[%clk 0:02:51]} 9. cxd5 {[%clk 0:02:33]}  Ne4 {[%clk 0:02:50]} 10. Be5 {[%clk 0:02:31]}  Nxc3 {[%clk 0:02:43]} 11. Bxc3 {[%clk 0:02:27]}  Bxc3+ {[%clk 0:02:41]} 12. Rxc3 {[%clk 0:02:27]}  Qxa2 {[%clk 0:02:39]} 13. Qd2 {[%clk 0:02:14]}  Rd8 {[%clk 0:02:26]} 14. Bc4 {[%clk 0:02:05]}  Qa5 {[%clk 0:02:25]} 15. Be2 {[%clk 0:00:46]}  Nd7 {[%clk 0:02:20]} 16. Qd4 {[%clk 0:00:42]}  Nf6 {[%clk 0:02:09]} 17. e4 {[%clk 0:00:40]}  Qa1+ {[%clk 0:02:08]} 18. Bd1 {[%clk 0:00:37]}  Qxb2 {[%clk 0:02:07]} 19. Rc4 {[%clk 0:00:28]}  Qxd4 {[%clk 0:02:05]} 20. Rxd4 {[%clk 0:00:29]}  e6 {[%clk 0:02:01]} 21. Bb3 {[%clk 0:00:27]}  exd5 {[%clk 0:02:00]} 22. exd5 {[%clk 0:00:27]}  b6 {[%clk 0:01:56]} 23. cxb6 {[%clk 0:00:25]}  Bb7 {[%clk 0:01:56]} 24. O-O {[%clk 0:00:20]}  Rd6 {[%clk 0:01:52]} 25. Ne5 {[%clk 0:00:19]}  Rxb6 {[%clk 0:01:51]} 26. Ba2 {[%clk 0:00:17]}  Rd8 {[%clk 0:01:48]} 27. d6 {[%clk 0:00:15]}  Rbxd6 {[%clk 0:01:43]} 28. Nxf7 {[%clk 0:00:12]}  Rxd4 {[%clk 0:00:58]} 29. Nxd8+ {[%clk 0:00:12]}  Kh8 {[%clk 0:00:57]} 30. Nxb7 {[%clk 0:00:12]}  Ne4 {[%clk 0:00:58]} 31. Ra1 {[%clk 0:00:08]}  Ra4 {[%clk 0:00:55]} 32. f3 {[%clk 0:00:08]}  Nc3 {[%clk 0:00:55]} 33. Nc5 {[%clk 0:00:08]}  Ra3 {[%clk 0:00:49]} 34. Rc1 {[%clk 0:00:04]}  Ne2+ {[%clk 0:00:48]} 35. Kf2 {[%clk 0:00:04]}  Nxc1 {[%clk 0:00:49]} 0-1


[Site "https://www.chess.com"]

[Event "Titled Tuesday Blitz February 07 Late 2023"]
[White "Korchmar, Vasiliy"]
[Black "Flynn, Jacob"]
[WhiteFideId "24131750"]
[BlackFideId "2509393"]
[WhiteElo "2438"]
[BlackElo "2102"]
[Result "1-0"]
[Round "04"]
[TimeControl "180+2"]
[Date "2023.02.07"]
[WhiteClock "0:00:10"]
[BlackClock "0:00:03"]

1. e4 {[%clk 0:03:00]}  e5 {[%clk 0:02:43]} 2. Nf3 {[%clk 0:02:59]}  Nc6 {[%clk 0:02:30]} 3. Bc4 {[%clk 0:02:58]}  Nf6 {[%clk 0:02:30]} 4. d3 {[%clk 0:02:58]}  Bc5 {[%clk 0:02:29]} 5. c3 {[%clk 0:02:57]}  a6 {[%clk 0:02:26]} 6. Bg5 {[%clk 0:02:54]}  d6 {[%clk 0:02:20]} 7. Nbd2 {[%clk 0:02:51]}  Ba7 {[%clk 0:02:20]} 8. O-O {[%clk 0:02:41]}  h6 {[%clk 0:02:18]} 9. Bh4 {[%clk 0:02:40]}  Qe7 {[%clk 0:02:19]} 10. Re1 {[%clk 0:02:32]}  g5 {[%clk 0:02:18]} 11. Bg3 {[%clk 0:02:31]}  O-O {[%clk 0:02:12]} 12. Nf1 {[%clk 0:02:27]}  Na5 {[%clk 0:01:59]} 13. Ne3 {[%clk 0:02:17]}  Nxc4 {[%clk 0:01:59]} 14. dxc4 {[%clk 0:02:18]}  Be6 {[%clk 0:01:51]} 15. Qd3 {[%clk 0:02:12]}  Bxe3 {[%clk 0:01:43]} 16. fxe3 {[%clk 0:02:02]}  Nd7 {[%clk 0:01:40]} 17. Nd2 {[%clk 0:01:56]}  f5 {[%clk 0:01:35]} 18. exf5 {[%clk 0:01:56]}  Nc5 {[%clk 0:01:35]} 19. Qe2 {[%clk 0:01:51]}  Bxf5 {[%clk 0:01:35]} 20. e4 {[%clk 0:01:45]}  Bg6 {[%clk 0:01:31]} 21. Bf2 {[%clk 0:01:40]}  Ne6 {[%clk 0:01:31]} 22. Be3 {[%clk 0:01:34]}  Kg7 {[%clk 0:01:29]} 23. Rf1 {[%clk 0:01:33]}  Rxf1+ {[%clk 0:01:29]} 24. Rxf1 {[%clk 0:01:29]}  b6 {[%clk 0:01:23]} 25. b4 {[%clk 0:01:15]}  a5 {[%clk 0:01:20]} 26. a3 {[%clk 0:00:56]}  axb4 {[%clk 0:01:20]} 27. axb4 {[%clk 0:00:57]}  Ra3 {[%clk 0:01:08]} 28. Nb1 {[%clk 0:00:53]}  Ra1 {[%clk 0:01:02]} 29. Qb2 {[%clk 0:00:51]}  Ra8 {[%clk 0:01:02]} 30. Nd2 {[%clk 0:00:51]}  Rf8 {[%clk 0:01:00]} 31. Ra1 {[%clk 0:00:47]}  Nf4 {[%clk 0:00:50]} 32. Ra7 {[%clk 0:00:32]}  Ne2+ {[%clk 0:00:45]} 33. Kh1 {[%clk 0:00:32]}  Bxe4 {[%clk 0:00:45]} 34. Bxb6 {[%clk 0:00:23]}  Kg6 {[%clk 0:00:37]} 35. Bg1 {[%clk 0:00:19]}  Bc6 {[%clk 0:00:23]} 36. Qb1+ {[%clk 0:00:14]}  Kg7 {[%clk 0:00:20]} 37. b5 {[%clk 0:00:14]}  Ba8 {[%clk 0:00:19]} 38. b6 {[%clk 0:00:14]}  Qf6 {[%clk 0:00:13]} 39. Rxc7+ {[%clk 0:00:14]}  Rf7 {[%clk 0:00:11]} 40. b7 {[%clk 0:00:14]}  Bxb7 {[%clk 0:00:09]} 41. Rxb7 {[%clk 0:00:11]}  Nxc3 {[%clk 0:00:09]} 42. Rxf7+ {[%clk 0:00:10]}  Qxf7 {[%clk 0:00:09]} 43. Qd3 {[%clk 0:00:10]}  Nd1 {[%clk 0:00:02]} 44. Qxd6 {[%clk 0:00:09]}  Nf2+ {[%clk 0:00:02]} 45. Bxf2 {[%clk 0:00:09]}  Qxf2 {[%clk 0:00:03]} 46. Qxe5+ {[%clk 0:00:10]}  Kg6 {[%clk 0:00:04]} 47. Qe4+ {[%clk 0:00:10]}  Kg7 {[%clk 0:00:04]} 48. Nf3 {[%clk 0:00:09]}  Qf1+ {[%clk 0:00:04]} 49. Ng1 {[%clk 0:00:10]}  h5 {[%clk 0:00:03]} 50. Qe5+ {[%clk 0:00:10]}  Kg6 {[%clk 0:00:03]} 51. c5 {[%clk 0:00:10]}  h4 {[%clk 0:00:03]} 52. Qd6+ {[%clk 0:00:10]}  Kh5 {[%clk 0:00:03]} 53. h3 {[%clk 0:00:10]} 1-0


[Site "https://www.chess.com"]